bitfinex/quotes_BTCUSD_20241014
["timestamp","ask_amount","ask_price","bid_price","bid_amount"]
[1728947729596,0.30454747,66217.0,66215.0,0.45307]
[1728947729802,0.15102,66216.0,66215.0,0.53017]
[1728947730004,0.15352847,66217.0,66215.0,0.53017]
[1728947730215,0.15102,66216.0,66215.0,0.53017]
[1728947730421,0.26507114,66216.0,66215.0,0.53017]
[1728947731751,0.41859961,66216.0,66215.0,0.53017]
[1728947732245,0.41859961,66216.0,66215.0,0.53117]
[1728947732689,0.41859961,66216.0,66215.0,0.53017]
[1728947733142,0.42759961,66216.0,66215.0,0.53117]
[1728947733856,0.43759961,66216.0,66215.0,0.53217]
[1728947734586,0.03305114,66216.0,66215.0,0.870493]
[1728947734788,0.150992,66229.0,66221.0,0.2644]
[1728947734998,0.150992,66229.0,66220.0,0.302022]
[1728947734999,0.15352847,66227.0,66224.0,0.1873]
[1728947735212,0.301962,66234.0,66224.0,0.1873]
[1728947735213,0.301962,66234.0,66227.0,0.0771]
[1728947735460,0.15352847,66233.0,66229.0,0.0771]
[1728947735705,0.150987,66231.0,66230.0,0.45297]
[1728947735924,0.15352847,66231.0,66230.0,0.45297]
[1728947736137,0.30451447,66231.0,66230.0,0.45297]
[1728947736369,0.15352847,66231.0,66230.0,0.45297]
[1728947736592,0.25352847,66231.0,66230.0,0.45297]
[1728947736995,0.40451447,66231.0,66230.0,0.45297]
[1728947737726,0.25652847,66231.0,66230.0,0.53107]
[1728947737945,0.25652847,66231.0,66230.0,0.71837]
[1728947737946,0.003,66231.0,66230.0,0.71837]
[1728947738176,0.003,66231.0,66230.0,0.884358]
[1728947738386,0.00766001,66248.0,66240.0,0.2666]
[1728947738591,0.37913818,66242.0,66241.0,0.45289]
[1728947739090,0.15352847,66242.0,66241.0,0.45289]
[1728947739499,0.40448947,66242.0,66241.0,0.45289]
[1728947739727,0.25352847,66242.0,66241.0,0.45289]
[1728947739935,0.40848947,66242.0,66241.0,0.45289]
[1728947742595,0.41014147,66242.0,66241.0,0.45289]
[1728947743725,0.45184775,66242.0,66241.0,0.45289]
[1728947743971,0.41014147,66242.0,66241.0,0.45289]
[1728947744866,0.41014147,66242.0,66241.0,0.45389]
[1728947745281,0.41014147,66242.0,66241.0,0.45289]
[1728947745282,0.40614147,66242.0,66241.0,0.45289]
[1728947745494,0.40614147,66242.0,66241.0,0.45389]
[1728947746860,0.42021707,66242.0,66241.0,0.447902]
[1728947748186,0.42021966,66242.0,66241.0,0.447902]
[1728947749398,0.26925866,66242.0,66241.0,0.447902]
[1728947749898,0.42021966,66242.0,66241.0,0.447902]
[1728947750146,0.44321966,66242.0,66241.0,0.447902]
[1728947750596,0.44821966,66242.0,66241.0,0.447902]
[1728947750817,0.5382297,66242.0,66241.0,0.447902]
[1728947751045,0.44821966,66242.0,66241.0,0.447902]
[1728947751276,0.43614147,66242.0,66241.0,0.447902]
[1728947751993,0.44014147,66242.0,66241.0,0.447902]
[1728947752489,0.49297016,66242.0,66241.0,0.446902]
[1728947752718,0.49897016,66242.0,66241.0,0.447902]
[1728947753414,0.61351816,66242.0,66241.0,0.447902]
[1728947753884,0.62351816,66242.0,66241.0,0.448902]
[1728947754341,0.46621947,66242.0,66241.0,0.40163462]
[1728947754788,0.46621947,66242.0,66241.0,0.40246062]
[1728947755019,0.46821947,66242.0,66241.0,0.40246062]
[1728947755485,0.45414147,66242.0,66241.0,0.40246062]
[1728947755960,0.56668947,66242.0,66241.0,0.40246062]
[1728947756211,0.45414147,66242.0,66241.0,0.40246062]
[1728947756417,0.56668947,66242.0,66241.0,0.40246062]
[1728947757203,0.56468947,66242.0,66241.0,0.40246062]
[1728947757381,0.56668947,66242.0,66241.0,0.40246062]
[1728947758400,0.45414147,66242.0,66241.0,0.40246062]
[1728947758602,0.75212298,66242.0,66241.0,0.25149562]
[1728947758838,0.68421221,66242.0,66241.0,0.25149562]
[1728947759850,0.50890947,66242.0,66241.0,0.25149562]
[1728947762208,0.68421221,66242.0,66241.0,0.06851167]
[1728947762561,0.50890947,66242.0,66241.0,0.06851167]
[1728947764577,0.68421221,66242.0,66241.0,0.06851167]
[1728947764793,0.72391849,66242.0,66241.0,2.6e-07]
[1728947765013,0.151002,66224.0,66223.0,0.0804]
[1728947765225,0.251016,66218.0,66217.0,0.1998]
[1728947765438,0.40454447,66218.0,66217.0,0.1998]
[1728947765650,0.40454447,66218.0,66217.0,0.65285]
[1728947765865,0.40454447,66218.0,66217.0,0.73325]
[1728947767192,0.41354447,66218.0,66217.0,0.73325]
[1728947767849,0.42135486,66218.0,66217.0,0.73325]
[1728947768553,0.41354447,66218.0,66217.0,0.73325]
[1728947768767,0.41359447,66218.0,66217.0,0.73325]
[1728947770097,0.42159447,66218.0,66217.0,0.73325]
[1728947772257,0.46671137,66218.0,66217.0,0.73325]
[1728947772470,0.42159447,66218.0,66217.0,0.73325]
[1728947773127,0.48926982,66218.0,66217.0,0.73325]
[1728947773543,0.42359447,66218.0,66217.0,0.73325]
[1728947773717,0.44459447,66218.0,66217.0,0.73325]
[1728947774329,0.48931845,66218.0,66217.0,0.73325]
[1728947774744,0.51183232,66218.0,66217.0,0.73325]
[1728947774963,0.42159447,66218.0,66217.0,0.73325]
[1728947775393,0.43571657,66218.0,66217.0,0.73325]
[1728947777278,0.67885401,66218.0,66217.0,0.48617186]
[1728947777487,0.61989721,66218.0,66217.0,0.48617186]
[1728947777698,0.73276119,66218.0,66217.0,0.48617186]
[1728947777959,0.61989721,66218.0,66217.0,0.48617186]
[1728947778160,0.73275234,66218.0,66217.0,0.48699786]
[1728947778583,0.61989721,66218.0,66217.0,0.48699786]
[1728947779277,0.95836205,66218.0,66217.0,0.40659786]
[1728947779511,0.66673941,66218.0,66217.0,0.40659786]
[1728947779741,0.68173941,66218.0,66217.0,0.40659786]
[1728947780210,0.67373941,66218.0,66217.0,0.40659786]
[1728947780438,0.66473941,66218.0,66217.0,0.40659786]
[1728947780654,0.67873941,66218.0,66217.0,0.40659786]
[1728947780857,0.69273941,66218.0,66217.0,0.40659786]
[1728947781643,0.69273941,66218.0,66217.0,0.39611984]
[1728947782511,0.51743667,66218.0,66217.0,0.39611984]
[1728947782776,0.50543667,66218.0,66217.0,0.39611984]
[1728947782971,0.50043667,66218.0,66217.0,0.47651984]
[1728947783183,0.6131147,66218.0,66217.0,0.47651984]
[1728947783391,0.50043667,66218.0,66217.0,0.47651984]
[1728947783595,0.45559447,66218.0,66217.0,0.47651984]
[1728947783818,0.54573296,66218.0,66217.0,0.47651984]
[1728947784075,0.45559447,66218.0,66217.0,0.47651984]
[1728947784281,0.43259447,66218.0,66217.0,0.47651984]
[1728947784486,0.37767262,66218.0,66217.0,0.47651984]
[1728947785321,0.33259447,66218.0,66217.0,0.47651984]
[1728947786269,0.43259447,66218.0,66217.0,0.47651984]
[1728947786512,0.47767518,66218.0,66217.0,0.47651984]
[1728947786740,0.43259447,66218.0,66217.0,0.47651984]
[1728947789118,0.28157847,66218.0,66217.0,0.47651984]
[1728947789366,0.50026465,66218.0,66217.0,0.47651984]
[1728947789610,0.50026465,66218.0,66217.0,0.62753784]
[1728947789611,0.09572018,66218.0,66217.0,0.62753784]
[1728947789815,0.02805,66218.0,66217.0,1.00344058]
[1728947790041,0.02805,66218.0,66217.0,0.66211984]
[1728947790042,0.180718,66218.0,66217.0,0.66211984]
[1728947790224,0.22584728,66218.0,66217.0,0.66211984]
[1728947790462,0.23438818,66218.0,66217.0,0.66211984]
[1728947790868,0.22638818,66218.0,66217.0,0.66211984]
[1728947791280,0.33338818,66218.0,66217.0,0.66211984]
[1728947791494,0.258718,66218.0,66217.0,0.66211984]
[1728947791713,0.39784693,66218.0,66217.0,0.66211984]
[1728947791927,0.62345664,66218.0,66217.0,0.66211984]
[1728947792154,0.39184693,66218.0,66217.0,0.66211984]
[1728947792363,0.30162002,66218.0,66217.0,0.66211984]
[1728947792570,0.45814849,66218.0,66217.0,0.66211984]
[1728947793004,0.64131697,66218.0,66217.0,0.66211984]
[1728947793424,0.64131697,66218.0,66217.0,0.47651984]
[1728947793643,0.64131697,66218.0,66217.0,0.39611984]
[1728947793867,0.66431697,66218.0,66217.0,0.39611984]
[1728947794593,0.46201423,66218.0,66217.0,0.39611984]
[1728947794802,0.46201423,66218.0,66217.0,0.66041984]
[1728947795011,0.58197418,66218.0,66217.0,0.66041984]
[1728947795244,0.16956397,66218.0,66217.0,0.83572258]
[1728947795464,0.16223047,66218.0,66217.0,0.66041984]
[1728947795679,0.31324647,66218.0,66217.0,0.66041984]
[1728947795892,0.36416788,66218.0,66217.0,0.66041984]
[1728947796792,0.46416788,66218.0,66217.0,0.66041984]
[1728947805964,0.66247062,66218.0,66217.0,0.47481984]
[1728947808079,0.46416788,66218.0,66217.0,0.47481984]
[1728947809756,0.59998517,66218.0,66217.0,0.47481984]
[1728947810002,0.46416788,66218.0,66217.0,0.47481984]
[1728947810235,0.5999918,66218.0,66217.0,0.47481984]
[1728947810482,0.46416788,66218.0,66217.0,0.47481984]
[1728947811444,0.59999564,66218.0,66217.0,0.47481984]
[1728947811697,0.46416788,66218.0,66217.0,0.47481984]
[1728947811971,0.60001893,66218.0,66217.0,0.47481984]
[1728947812182,0.60002132,66218.0,66217.0,0.47481984]
[1728947812397,0.46416788,66218.0,66217.0,0.47481984]
[1728947813083,0.6000172,66218.0,66217.0,0.47481984]
[1728947813317,0.46416788,66218.0,66217.0,0.47481984]
[1728947814083,0.63947062,66218.0,66217.0,0.47481984]
[1728947814311,0.66247062,66218.0,66217.0,0.39611984]
[1728947818989,0.48716788,66218.0,66217.0,0.39611984]
[1728947820401,0.47416788,66218.0,66217.0,0.39611984]
[1728947820867,0.48616788,66218.0,66217.0,0.39611984]
[1728947821100,0.50016788,66218.0,66217.0,0.39611984]
[1728947821350,0.48816788,66218.0,66217.0,0.39611984]
[1728947821577,0.50216788,66218.0,66217.0,0.39611984]
[1728947825440,0.47916788,66218.0,66217.0,0.39611984]
[1728947828325,0.07462341,66218.0,66217.0,0.66451984]
[1728947828674,0.07462341,66218.0,66217.0,0.82553784]
[1728947830589,0.07462341,66218.0,66217.0,0.83053784]
[1728947830798,0.06062341,66218.0,66217.0,0.83053784]
[1728947831217,0.06162341,66218.0,66217.0,0.82653784]
[1728947831424,0.06162341,66218.0,66217.0,0.83153784]
[1728947831644,0.002702,66218.0,66217.0,0.83153784]
[1728947832789,0.002702,66218.0,66217.0,0.66551984]
[1728947833007,0.40724647,66218.0,66217.0,0.66551984]
[1728947833226,0.41124647,66218.0,66217.0,0.39711984]
[1728947833442,0.47916891,66218.0,66217.0,0.39711984]
[1728947833658,0.48679603,66218.0,66217.0,0.39711984]
[1728947834287,0.50279603,66218.0,66217.0,0.33571184]
[1728947834523,0.286036,66209.0,66208.0,0.000826]
[1728947834748,0.84009239,66209.0,66208.0,0.453936]
[1728947834959,0.84009239,66209.0,66208.0,0.451458]
[1728947835162,0.97659239,66209.0,66208.0,0.4396509]
[1728947835363,0.97659239,66209.0,66184.0,0.22560971]
[1728947835364,0.002,66196.0,66184.0,0.22560971]
[1728947835581,0.181068,66195.0,66194.0,0.22560971]
[1728947835822,0.274091,66185.0,66184.0,0.22560971]
[1728947836020,0.42761947,66185.0,66184.0,0.67888971]
[1728947836241,0.42761947,66185.0,66184.0,0.45328]
[1728947837349,0.43861947,66185.0,66184.0,0.45328]
[1728947837991,0.65822918,66185.0,66184.0,0.45328]
[1728947838229,0.62392221,66185.0,66184.0,0.44328]
[1728947838673,0.46261947,66185.0,66184.0,0.44328]
[1728947839087,0.44861947,66185.0,66184.0,0.44328]
[1728947839555,0.61692221,66185.0,66184.0,0.44328]
[1728947839804,0.63092221,66185.0,66184.0,0.44328]
[1728947840020,0.63192221,66185.0,66184.0,0.44328]
[1728947840244,0.63092221,66185.0,66184.0,0.44328]
[1728947840457,0.61692221,66185.0,66184.0,0.44328]
[1728947841163,0.52317319,66185.0,66184.0,0.44328]
[1728947841400,0.43261947,66185.0,66184.0,0.44328]
[1728947841865,0.47765887,66185.0,66184.0,0.44328]
[1728947842096,0.43261947,66185.0,66184.0,0.44328]
[1728947842322,0.43961947,66185.0,66184.0,0.44328]
[1728947842552,0.63792221,66185.0,66184.0,0.44328]
[1728947842770,0.55262466,66185.0,66184.0,0.44328]
[1728947842995,0.46061947,66185.0,66184.0,0.44328]
[1728947843487,0.47261947,66185.0,66184.0,0.44328]
[1728947844145,0.47061947,66185.0,66184.0,0.44328]
[1728947844373,0.45561947,66185.0,66184.0,0.44328]
[1728947844592,0.50057379,66185.0,66184.0,0.44328]
[1728947844829,0.45561947,66185.0,66184.0,0.44328]
[1728947845045,0.63092221,66185.0,66184.0,0.44328]
[1728947845282,0.63592221,66185.0,66184.0,0.44328]
[1728947845502,0.70335228,66185.0,66184.0,0.44328]
[1728947845766,0.63592221,66185.0,66184.0,0.44328]
[1728947846244,0.63092221,66185.0,66184.0,0.44328]
[1728947846487,0.45561947,66185.0,66184.0,0.44328]
[1728947846727,0.43261947,66185.0,66184.0,0.44328]
[1728947847863,0.43261947,66185.0,66184.0,0.444106]
[1728947848074,0.45561947,66185.0,66184.0,0.444106]
[1728947849953,0.85653192,66185.0,66184.0,0.444106]
[1728947850186,0.85653192,66185.0,66184.0,0.40289203]
[1728947850187,0.91109813,66185.0,66184.0,0.40289203]
[1728947850426,0.82322495,66185.0,66184.0,0.34245403]
[1728947850657,0.64792221,66185.0,66184.0,0.34245403]
[1728947850919,0.82322495,66185.0,66184.0,0.22588132]
[1728947851170,0.80922495,66185.0,66184.0,0.13522432]
[1728947851409,0.97276909,66185.0,66184.0,0.13522432]
[1728947851649,0.95876909,66185.0,66184.0,0.13522432]
[1728947851904,0.95876909,66185.0,66163.0,0.000826]
[1728947851905,0.151139,66164.0,66163.0,0.000826]
[1728947852168,0.274139,66164.0,66163.0,0.000826]
[1728947852393,0.251139,66164.0,66163.0,0.454246]
[1728947853361,0.302259,66169.0,66163.0,0.454246]
[1728947853362,0.1,66168.0,66163.0,0.454246]
[1728947853610,0.40466747,66164.0,66163.0,0.454246]
[1728947854100,0.42966747,66164.0,66163.0,0.454246]
[1728947854354,0.26452847,66164.0,66163.0,0.454246]
[1728947854598,0.41566747,66164.0,66163.0,0.454246]
[1728947855344,0.42666747,66164.0,66163.0,0.454246]
[1728947855584,0.44966747,66164.0,66163.0,0.454246]
[1728947856801,0.43866747,66164.0,66163.0,0.454246]
[1728947857036,0.44166747,66164.0,66163.0,0.454246]
[1728947857291,0.45566747,66164.0,66163.0,0.454246]
[1728947857785,0.46339786,66164.0,66163.0,0.454246]
[1728947857999,0.55486607,66164.0,66163.0,0.454246]
[1728947858215,0.46839786,66164.0,66163.0,0.454246]
[1728947858654,0.43266747,66164.0,66163.0,0.454246]
[1728947858868,0.41866747,66164.0,66163.0,0.533446]
[1728947859080,0.43266747,66164.0,66163.0,0.533446]
[1728947859935,0.45566747,66164.0,66163.0,0.533446]
[1728947864903,0.28152847,66164.0,66163.0,0.533446]
[1728947865121,0.43266747,66164.0,66163.0,0.533446]
[1728947865808,0.28152847,66164.0,66163.0,0.533446]
[1728947866030,0.26752847,66164.0,66163.0,0.533446]
[1728947866455,0.26452847,66164.0,66163.0,0.533446]
[1728947866893,0.011,66164.0,66163.0,0.873187]
[1728947867103,0.30223,66175.0,66166.0,0.0792]
[1728947867324,0.22560971,66169.0,66167.0,0.4534]
[1728947867534,0.45576547,66174.0,66168.0,0.15113]
[1728947867535,0.30464547,66174.0,66168.0,0.15113]
[1728947867755,0.30464547,66174.0,66169.0,0.604507]
[1728947867756,0.15352847,66174.0,66169.0,0.604507]
[1728947867977,0.1,66173.0,66169.0,0.604506]
[1728947868188,0.1,66172.0,66169.0,0.604507]
[1728947868638,0.1,66172.0,66169.0,0.45338]
[1728947868843,0.22560971,66177.0,66171.0,0.2628]
[1728947869075,0.15352847,66176.0,66172.0,0.45336]
[1728947869707,0.30464047,66176.0,66172.0,0.45336]
[1728947869922,0.15352847,66176.0,66172.0,0.45336]
[1728947870135,0.1,66175.0,66172.0,0.45336]
[1728947870345,0.25352847,66175.0,66172.0,0.45336]
[1728947871204,0.25352847,66175.0,66173.0,0.151118]
[1728947871413,0.25352847,66175.0,66174.0,0.45335]
[1728947872133,0.26152847,66175.0,66174.0,0.45335]
[1728947872823,0.26952847,66175.0,66174.0,0.45335]
[1728947873251,0.42064247,66175.0,66174.0,0.45335]
[1728947873476,0.41264247,66175.0,66174.0,0.45335]
[1728947873935,0.42064247,66175.0,66174.0,0.45335]
[1728947874203,0.26952847,66175.0,66174.0,0.45335]
[1728947875169,0.42064247,66175.0,66174.0,0.45335]
[1728947875409,0.26952847,66175.0,66174.0,0.45335]
[1728947875637,0.26952847,66175.0,66174.0,0.604466]
[1728947875638,0.016,66175.0,66174.0,0.604466]
[1728947876550,0.016,66175.0,66174.0,0.53295]
[1728947876784,0.42064247,66175.0,66174.0,0.53295]
[1728947877010,0.26952847,66175.0,66174.0,0.53295]
[1728947877235,0.42064247,66175.0,66174.0,0.53295]
[1728947877917,0.26952847,66175.0,66174.0,0.53295]
[1728947878156,0.42064247,66175.0,66174.0,0.53295]
[1728947879355,0.42064247,66175.0,66174.0,0.45335]
[1728947879356,0.48789701,66175.0,66174.0,0.45335]
[1728947879593,0.57754799,66175.0,66174.0,0.45335]
[1728947879831,0.46545709,66175.0,66174.0,0.45335]
[1728947880061,0.42064247,66175.0,66174.0,0.45335]
[1728947880291,0.51085331,66175.0,66174.0,0.45335]
[1728947880522,0.42064247,66175.0,66174.0,0.45335]
[1728947880793,0.4884582,66175.0,66174.0,0.45335]
[1728947881525,0.4804582,66175.0,66174.0,0.45335]
[1728947881777,0.4724582,66175.0,66174.0,0.45335]
[1728947882032,0.4714582,66175.0,66174.0,0.45335]
[1728947882271,0.5395331,66175.0,66174.0,0.45335]
[1728947882994,0.5411851,66175.0,66174.0,0.45335]
[1728947883474,0.27718047,66175.0,66174.0,0.45335]
[1728947883704,0.27718047,66175.0,66174.0,0.64115]
[1728947883705,0.42829447,66175.0,66174.0,0.64115]
[1728947884004,0.123652,66175.0,66174.0,0.72075]
[1728947884257,0.023652,66175.0,66174.0,1.04716874]
[1728947884511,0.06883341,66175.0,66174.0,0.89605274]
[1728947884746,0.06883341,66175.0,66174.0,1.04716874]
[1728947885249,0.06883341,66175.0,66174.0,0.72075]
[1728947885484,0.16883341,66175.0,66174.0,0.72075]
[1728947885716,0.1914205,66175.0,66174.0,0.72075]
[1728947885942,0.123652,66175.0,66174.0,0.72075]
[1728947886174,0.16882999,66175.0,66174.0,0.72075]
[1728947886647,0.06882817,66175.0,66174.0,0.72075]
[1728947887160,0.274766,66175.0,66174.0,0.72075]
[1728947887385,0.1914205,66175.0,66174.0,0.72075]
[1728947887604,0.51865302,66175.0,66174.0,0.72075]
[1728947888084,0.42829447,66175.0,66174.0,0.72075]
[1728947888541,0.5186448,66175.0,66174.0,0.72075]
[1728947888779,0.42829447,66175.0,66174.0,0.72075]
[1728947888989,0.51864401,66175.0,66174.0,0.72075]
[1728947889874,0.51864401,66175.0,66174.0,0.53295]
[1728947889875,0.42829447,66175.0,66174.0,0.53295]
[1728947890086,0.5412341,66175.0,66174.0,0.53295]
[1728947890995,0.42829447,66175.0,66174.0,0.53295]
[1728947893598,0.4731741,66175.0,66174.0,0.53295]
[1728947893844,0.42829447,66175.0,66174.0,0.53295]
[1728947895409,0.47319734,66175.0,66174.0,0.533776]
[1728947895649,0.47320627,66175.0,66174.0,0.533776]
[1728947895911,0.54130995,66175.0,66174.0,0.533776]
[1728947896345,0.47320628,66175.0,66174.0,0.533776]
[1728947896567,0.32209228,66175.0,66174.0,0.533776]
[1728947896786,0.23666587,66175.0,66174.0,0.872692]
[1728947897024,0.21406483,66175.0,66174.0,0.872692]
[1728947897454,0.19147687,66175.0,66174.0,0.872692]
[1728947897681,0.1688708,66175.0,66174.0,0.872692]
[1728947897891,0.06886974,66175.0,66174.0,0.872692]
[1728947898106,0.16886974,66175.0,66174.0,0.872692]
[1728947898332,0.023652,66175.0,66174.0,0.872692]
[1728947898547,0.16887143,66175.0,66174.0,0.872692]
[1728947898760,0.123652,66175.0,66174.0,0.877692]
[1728947899666,0.123652,66175.0,66174.0,0.887692]
[1728947899667,0.023652,66175.0,66174.0,0.887692]
[1728947900354,0.001652,66175.0,66174.0,0.887692]
[1728947900806,0.012652,66175.0,66174.0,0.887692]
[1728947901029,0.22560971,66186.0,66185.0,0.423491]
[1728947901246,0.22560971,66186.0,66185.0,1.06206374]
[1728947901690,0.001652,66192.0,66191.0,0.005]
[1728947901938,0.001652,66192.0,66191.0,0.53283]
[1728947902393,0.001652,66192.0,66191.0,0.683907]
[1728947903277,0.002652,66192.0,66191.0,0.683907]
[1728947903746,0.002652,66192.0,66191.0,0.53283]
[1728947903973,0.002652,66192.0,66191.0,0.683907]
[1728947904449,0.002652,66192.0,66191.0,0.53283]
[1728947905317,0.002652,66192.0,66191.0,0.683907]
[1728947908369,0.002652,66192.0,66191.0,0.53283]
[1728947908603,0.15618047,66192.0,66191.0,0.53283]
[1728947908819,0.40725547,66192.0,66191.0,0.53283]
[1728947909492,0.30137754,66192.0,66191.0,0.53283]
[1728947909727,0.25618047,66192.0,66191.0,0.53283]
[1728947910165,0.40725547,66192.0,66191.0,0.53283]
[1728947910589,0.45245254,66192.0,66191.0,0.53283]
[1728947911026,0.40725547,66192.0,66191.0,0.53283]
[1728947911709,0.25618047,66192.0,66191.0,0.53283]
[1728947912392,0.3013553,66192.0,66191.0,0.53283]
[1728947912608,0.25618047,66192.0,66191.0,0.53283]
[1728947912831,0.002652,66192.0,66191.0,0.53283]
[1728947913052,0.002652,66192.0,66191.0,0.873107]
[1728947914147,0.001652,66192.0,66191.0,0.71703]
[1728947914369,0.25518047,66192.0,66191.0,0.53383]
[1728947914585,0.101652,66192.0,66191.0,0.53383]
[1728947914803,0.101652,66192.0,66191.0,0.86020974]
[1728947915027,0.101652,66192.0,66191.0,1.04440974]
[1728947915473,0.001652,66192.0,66191.0,0.89333274]
[1728947915690,0.001652,66192.0,66191.0,0.71803]
[1728947915914,0.001652,66192.0,66191.0,0.869107]
[1728947916158,0.001652,66192.0,66191.0,1.05940974]
[1728947916609,0.001652,66192.0,66191.0,0.9923212]
[1728947917255,0.001652,66192.0,66191.0,0.9913212]
[1728947917487,0.001652,66192.0,66191.0,1.0013212]
[1728947917488,0.002652,66192.0,66191.0,1.0013212]
[1728947917708,0.003702,66192.0,66191.0,1.0013212]
[1728947925488,0.003702,66192.0,66191.0,1.15484967]
[1728947926621,0.003702,66192.0,66191.0,1.0013212]
[1728947932938,0.003702,66192.0,66191.0,1.15484967]
[1728947942508,0.003702,66192.0,66191.0,1.0013212]
[1728947942750,0.003702,66192.0,66191.0,1.0021472]
[1728947947346,0.003702,66192.0,66191.0,0.814333]
[1728947947566,0.003702,66192.0,66191.0,0.620133]
[1728947948006,0.003702,66192.0,66191.0,0.464056]
[1728947948650,0.17042051,66192.0,66191.0,0.455056]
[1728947948885,0.102702,66192.0,66191.0,0.455056]
[1728947949112,0.19399334,66192.0,66191.0,0.461056]
[1728947949378,0.19399334,66192.0,66191.0,0.465056]
[1728947949379,0.102702,66192.0,66191.0,0.465056]
[1728947949582,0.102702,66192.0,66191.0,0.812133]
[1728947949814,0.102702,66192.0,66191.0,0.895333]
[1728947949815,0.002702,66192.0,66191.0,0.895333]
[1728947950037,0.002702,66192.0,66191.0,0.894333]
[1728947950247,0.002702,66192.0,66191.0,0.888333]
[1728947950248,0.001702,66192.0,66191.0,0.888333]
[1728947950459,0.001702,66192.0,66191.0,0.889333]
[1728947950942,0.001702,66192.0,66191.0,0.645056]
[1728947951186,0.001702,66192.0,66191.0,0.611133]
[1728947951420,0.001702,66192.0,66191.0,0.459056]
[1728947951638,0.101702,66192.0,66191.0,0.455056]
[1728947952118,0.19223161,66192.0,66191.0,0.454056]
[1728947952560,0.17059589,66192.0,66191.0,0.455056]
[1728947952984,0.16959589,66192.0,66191.0,0.454056]
[1728947953201,0.09223161,66192.0,66191.0,0.454056]
[1728947953428,0.19223161,66192.0,66191.0,0.454056]
[1728947953646,0.09223161,66192.0,66191.0,0.458056]
[1728947953873,0.19223161,66192.0,66191.0,0.458056]
[1728947954308,0.19223161,66192.0,66191.0,0.454056]
[1728947954536,0.19223161,66192.0,66191.0,0.455056]
[1728947954745,0.19222551,66192.0,66191.0,0.455056]
[1728947955175,0.09222551,66192.0,66191.0,0.455056]
[1728947955865,0.09222551,66192.0,66191.0,0.606133]
[1728947956083,0.001702,66192.0,66191.0,0.606133]
[1728947956510,0.09222551,66192.0,66191.0,0.606133]
[1728947957039,0.09223478,66192.0,66191.0,0.606133]
[1728947958340,0.001702,66192.0,66191.0,0.606133]
[1728947958551,0.09223478,66192.0,66191.0,0.606133]
[1728947958781,0.001702,66192.0,66191.0,0.606133]
[1728947960333,0.101702,66192.0,66191.0,0.455056]
[1728947960573,0.19223478,66192.0,66191.0,0.455056]
[1728947961236,0.09223478,66192.0,66191.0,0.455056]
[1728947961445,0.001702,66192.0,66191.0,0.455056]
[1728947961878,0.0922515,66192.0,66191.0,0.455056]
[1728947963467,0.0922515,66192.0,66191.0,0.606133]
[1728947963681,0.001702,66192.0,66191.0,0.455056]
[1728947966325,0.06959514,66192.0,66191.0,0.455056]
[1728947966536,0.16959514,66192.0,66191.0,0.455056]
[1728947967198,0.101702,66192.0,66191.0,0.455056]
[1728947967430,0.16959456,66192.0,66191.0,0.455056]
[1728947968095,0.16959456,66192.0,66191.0,0.606133]
[1728947970508,0.001702,66192.0,66191.0,1.03486147]
[1728947971384,0.001702,66192.0,66191.0,1.03386147]
[1728947972043,0.002702,66192.0,66191.0,1.03486147]
[1728947972749,0.003702,66192.0,66191.0,1.04386147]
[1728947986474,0.003702,66192.0,66191.0,0.630133]
[1728947986717,0.003702,66192.0,66191.0,0.620133]
[1728947986930,0.003702,66192.0,66191.0,0.630133]
[1728947987786,0.002702,66192.0,66191.0,0.621133]
[1728947987975,0.002702,66192.0,66191.0,0.626133]
[1728947989345,0.003702,66192.0,66191.0,0.627133]
[1728947993959,0.003702,66192.0,66191.0,0.80243574]
[1728947995253,0.003702,66192.0,66191.0,0.622133]
[1728947995461,0.003702,66192.0,66191.0,0.627133]
[1728948000435,0.003702,66192.0,66191.0,0.80243574]
[1728948005116,0.003702,66192.0,66191.0,0.627133]
[1728948006064,0.003702,66192.0,66191.0,0.73945215]
[1728948006731,0.003702,66192.0,66191.0,0.72945215]
[1728948006962,0.003702,66192.0,66191.0,0.73945215]
[1728948007903,0.003702,66192.0,66191.0,0.617133]
[1728948008140,0.003702,66192.0,66191.0,0.622133]
[1728948008696,0.003702,66192.0,66191.0,0.73945215]
[1728948009100,0.003702,66192.0,66191.0,0.92985215]
[1728948009539,0.003702,66192.0,66191.0,1.00965215]
[1728948009992,0.003702,66192.0,66191.0,1.1219713]
[1728948010206,0.003702,66192.0,66191.0,1.27549977]
[1728948011936,0.003702,66192.0,66191.0,1.22832618]
[1728948012133,0.003702,66192.0,66191.0,1.22632618]
[1728948013406,0.003702,66192.0,66191.0,1.42679089]
[1728948013645,0.22560971,66207.0,66206.0,0.436243]
[1728948013850,0.22560971,66207.0,66206.0,1.04290147]
[1728948014285,0.22560971,66215.0,66214.0,0.166025]
[1728948014524,0.22560971,66215.0,66214.0,0.619105]
[1728948014960,0.001702,66218.0,66217.0,0.166018]
[1728948015166,0.001702,66218.0,66217.0,0.619078]
[1728948016135,0.001702,66218.0,66217.0,0.621078]
[1728948016553,0.001702,66218.0,66217.0,0.891278]
[1728948016788,0.001702,66218.0,66217.0,1.39573589]
[1728948016987,0.001702,66218.0,66217.0,1.22027118]
[1728948017247,0.001702,66218.0,66217.0,1.22427118]
[1728948017623,0.001702,66218.0,66217.0,1.22027118]
[1728948018032,0.002702,66218.0,66217.0,1.23427118]
[1728948018457,0.002702,66218.0,66217.0,1.23227118]
[1728948018793,0.003702,66218.0,66217.0,1.23927118]
[1728948019001,0.003702,66218.0,66217.0,1.24127118]
[1728948019405,0.003702,66218.0,66217.0,1.23927118]
[1728948021244,0.003702,66218.0,66217.0,1.43973589]
[1728948022127,0.22560971,66240.0,66239.0,0.436168]
[1728948022366,0.22560971,66240.0,66239.0,1.39353589]
[1728948022812,0.001652,66241.0,66240.0,0.165966]
[1728948023014,0.001652,66241.0,66240.0,0.77239447]
[1728948023648,0.001652,66241.0,66240.0,0.618866]
[1728948024515,0.001652,66241.0,66240.0,0.632866]
[1728948025396,0.002652,66241.0,66240.0,0.645866]
[1728948026918,0.002652,66241.0,66240.0,0.79939447]
[1728948027150,0.002652,66241.0,66240.0,0.97485918]
[1728948027595,0.002652,66241.0,66240.0,0.79939447]
[1728948027814,0.002652,66241.0,66240.0,0.97485918]
[1728948028042,0.002652,66241.0,66240.0,0.79939447]